bitfinex-derivatives/quotes_BNBF0:USTF0_20250509
["timestamp","ask_amount","ask_price","bid_price","bid_amount"]
[1746806229967,0.26596574,635.92,635.06,0.88093087]
[1746806230168,0.388,635.94,635.06,0.88093087]
[1746806231663,0.798,635.94,635.06,0.88093087]
[1746806231868,0.26600314,635.93,635.06,0.88093087]
[1746806237772,0.41,635.94,635.06,0.88093087]
[1746806237973,0.26632819,635.93,635.06,0.88093087]
[1746806238776,0.388,635.92,635.06,0.88093087]
[1746806251991,0.41,635.94,635.06,0.88093087]
[1746806252592,0.26636066,635.93,635.06,0.88093087]
[1746806253288,0.27369787,636.01,635.06,0.88093087]
[1746806253692,0.26636066,636.0,635.06,0.88093087]
[1746806255493,0.388,635.99,635.06,0.88093087]
[1746806255995,1.03036066,635.98,635.06,0.88093087]
[1746806256190,0.26636066,635.97,635.06,0.88093087]
[1746806256389,0.54016836,635.97,635.06,0.88093087]
[1746806256591,0.26636066,635.96,635.06,0.88093087]
[1746806257393,0.764,635.98,635.06,0.88093087]
[1746806257593,0.764,635.98,635.07,0.28889247]
[1746806257793,0.764,635.98,635.09,0.31491599]
[1746806258494,0.764,635.98,635.1,0.28889247]
[1746806258694,0.764,635.98,635.12,0.31490112]
[1746806259095,0.764,635.98,635.13,0.28889247]
[1746806259591,0.764,635.98,635.15,0.31488624]
[1746806260097,0.764,635.98,635.16,0.28889247]
[1746806260291,0.764,635.98,635.18,0.31487137]
[1746806260691,0.764,635.98,635.19,0.28890217]
[1746806260896,0.764,635.98,635.2,0.31486146]
[1746806261298,0.764,635.98,635.21,0.28890217]
[1746806261498,0.764,635.98,635.22,0.31485154]
[1746806262698,0.764,635.98,635.23,0.28890229]
[1746806262898,0.764,635.98,635.24,0.31484163]
[1746806263498,0.764,635.98,635.25,0.28890229]
[1746806263698,0.764,635.98,635.26,0.31483172]
[1746806264105,0.764,635.98,635.27,0.28890229]
[1746806264299,0.764,635.98,635.28,0.31482181]
[1746806265001,0.764,635.98,635.29,0.28890229]
[1746806265199,0.764,635.98,635.3,0.31481189]
[1746806265601,0.764,635.98,635.31,0.28890229]
[1746806265800,0.764,635.98,635.32,0.31480198]
[1746806266594,0.764,635.98,635.33,0.28890229]
[1746806266799,0.764,635.98,635.34,0.31479207]
[1746806267098,0.764,635.98,635.35,0.28890229]
[1746806267293,0.764,635.98,635.36,0.31478217]
[1746806267699,0.764,635.98,635.37,0.28890229]
[1746806267900,0.764,635.98,635.38,0.31477226]
[1746806268301,0.764,635.98,635.39,0.28890229]
[1746806268601,0.764,635.98,635.4,0.31476235]
[1746806269101,0.764,635.98,635.41,0.28890229]
[1746806269294,0.764,635.98,635.42,0.31475244]
[1746806285312,0.764,635.98,635.43,0.28890201]
[1746806285812,0.764,635.98,635.42,0.31475244]
[1746806286112,1.99913276,638.25,635.42,0.31475244]
[1746806286307,0.26607966,638.24,635.42,0.31475244]
[1746806286608,0.26607966,638.23,635.42,0.31475244]
[1746806287214,0.53945932,638.22,635.42,0.31475244]
[1746806287814,0.26607966,638.21,635.42,0.31475244]
[1746806288116,0.26607966,638.2,635.42,0.31475244]
[1746806288311,0.73407966,638.2,635.42,0.31475244]
[1746806288509,0.26607966,638.19,635.42,0.31475244]
[1746806288815,0.26607966,638.18,635.42,0.31475244]
[1746806289116,0.26607966,638.17,635.42,0.31475244]
[1746806289515,0.26607966,638.16,635.42,0.31475244]
[1746806289917,0.26607966,638.15,635.42,0.31475244]
[1746806290217,0.26607966,638.14,635.42,0.31475244]
[1746806290517,0.26607966,638.13,635.42,0.31475244]
[1746806290817,0.26607966,638.12,635.42,0.31475244]
[1746806291117,1.99913276,638.1,635.42,0.31475244]
[1746806291418,0.26607966,638.09,635.42,0.31475244]
[1746806291719,0.26607966,638.08,635.42,0.31475244]
[1746806292219,0.26607966,638.07,635.42,0.31475244]
[1746806292620,0.26607966,638.06,635.42,0.31475244]
[1746806292820,0.26607966,638.05,635.42,0.31475244]
[1746806293216,0.855,638.2,635.42,0.31475244]
[1746806293217,1.99913276,637.69,635.42,0.31475244]
[1746806293620,0.26607966,637.68,635.42,0.31475244]
[1746806293917,0.26607966,637.67,635.42,0.31475244]
[1746806294222,0.26607966,637.66,635.42,0.31475244]
[1746806294522,1.99913276,637.69,635.42,0.31475244]
[1746806294719,1.99913276,637.8,635.42,0.31475244]
[1746806295021,0.26611945,637.68,635.42,0.31475244]
[1746806295222,0.26611945,637.79,635.42,0.31475244]
[1746806295421,0.26611945,637.78,635.42,0.31475244]
[1746806296019,0.26611945,637.77,635.41,0.27360534]
[1746806296219,0.26611945,637.76,635.41,0.27360534]
[1746806296519,0.26611945,637.75,635.41,0.27360534]
[1746806297024,1.99913276,637.61,635.41,0.27360534]
[1746806297517,0.26611945,637.6,635.41,0.27360534]
[1746806297820,0.26611945,637.59,635.41,0.27360534]
[1746806298021,0.26611945,637.59,634.43,0.99378395]
[1746806298222,0.26611945,637.58,635.41,0.2734946]
[1746806298517,0.26611945,637.58,634.43,0.99378395]
[1746806298717,0.26611945,637.57,634.43,0.99378395]
[1746806298923,0.26611945,637.57,634.36,0.99378395]
[1746806299123,0.26611945,637.56,635.17,0.2889721]
[1746806299319,0.26611945,637.55,635.17,0.2889721]
[1746806299624,0.26611945,637.54,635.17,0.2889721]
[1746806300025,0.26611945,637.53,635.17,0.2889721]
[1746806300325,0.26611945,637.53,635.18,0.27349782]
[1746806300521,0.26611945,637.52,635.18,0.27349782]
[1746806300724,0.26611945,637.51,635.19,0.2889721]
[1746806301126,2.26525221,637.51,635.19,0.2889721]
[1746806301426,0.53961835,637.5,635.17,0.2889721]
[1746806301725,0.53961835,637.5,635.2,0.2889721]
[1746806301927,0.2734989,637.5,634.42,0.99378395]
[1746806302122,0.26615695,637.49,635.17,0.28898448]
[1746806302628,0.26615695,637.48,635.17,0.28898448]
[1746806302929,0.2734989,637.5,634.42,0.99378395]
[1746806303230,0.26614782,637.49,635.17,0.28899473]
[1746806303525,0.26614782,637.48,635.17,0.28899473]
[1746806303730,0.26614782,637.47,634.34,0.28899473]
[1746806304229,0.26614782,637.46,634.35,0.56262051]
[1746806304430,0.26614782,637.45,634.36,0.28899473]
[1746806304726,0.26614782,637.45,634.37,0.28899473]
[1746806305131,0.26614782,637.45,634.36,0.28899473]
[1746806305734,0.26614782,637.45,634.37,0.629]
[1746806305931,0.26614782,637.45,634.37,0.91799473]
[1746806306233,0.26614782,637.45,634.38,0.28899473]
[1746806307234,0.27359351,637.44,634.38,0.28899473]
[1746806307534,0.26614782,637.43,634.38,0.28899473]
[1746806309634,0.26614782,637.43,634.39,0.28899473]
[1746806310030,0.26614782,637.42,634.4,0.28899473]
[1746806310432,0.26614782,637.41,634.41,0.28899473]
[1746806310631,0.53973057,637.41,634.41,0.28899473]
[1746806310830,0.53973057,637.41,634.42,0.28899473]
[1746806310831,0.27358275,637.41,634.42,0.28899473]
[1746806311031,0.26614782,637.4,634.42,0.28899473]
[1746806311236,0.26614782,637.39,634.42,0.28899473]
[1746806311431,0.26614782,637.39,634.43,0.28899473]
[1746806311635,0.26614782,637.38,634.43,0.28899473]
[1746806311937,0.26614782,637.37,634.44,0.28899473]
[1746806312235,0.26614782,637.36,634.45,0.28899473]
[1746806312538,2.26528058,637.36,634.64,0.99378395]
[1746806312737,0.26614782,637.35,634.64,0.99378395]
[1746806312939,0.26614782,637.34,634.65,0.28899473]
[1746806313239,0.26614782,637.34,634.64,0.99378395]
[1746806313240,0.26614782,637.33,634.66,0.28899473]
[1746806313537,0.26614782,637.32,634.67,0.28899473]
[1746806313939,0.26614782,637.31,634.68,0.28899473]
[1746806314237,0.26614782,637.3,634.69,0.28899473]
[1746806314838,0.26614782,637.29,634.7,0.28899473]
[1746806315138,0.27358706,637.34,634.64,0.99378395]
[1746806315434,0.26618419,637.33,634.65,0.2889881]
[1746806315839,0.26618419,637.32,634.64,0.2889881]
[1746806316335,0.53977232,637.31,634.64,0.2889881]
[1746806316837,0.26618419,637.3,634.64,0.2889881]
[1746806317138,0.26618419,637.29,634.64,0.2889881]
[1746806317439,0.26618419,637.3,634.64,0.2889881]
[1746806317939,0.26618419,637.29,634.64,0.2889881]
[1746806318140,0.26618419,637.3,634.55,0.2889881]
[1746806319138,0.26618419,637.47,634.55,0.2889881]
[1746806319336,0.27357953,637.29,634.55,0.2889881]
[1746806319534,0.26618419,637.46,634.55,0.2889881]
[1746806319833,0.26618419,637.45,634.69,0.31511446]
[1746806320138,0.26618419,637.44,634.7,0.2889881]
[1746806320539,0.26618419,637.43,634.7,0.2889881]
[1746806320938,0.53974759,637.43,634.7,0.2889881]
[1746806321139,0.574,637.42,634.7,0.2889881]
[1746806321338,0.84018419,637.42,634.7,0.2889881]
[1746806321635,0.26618419,637.41,634.7,0.2889881]
[1746806321939,0.26618419,637.4,634.7,0.2889881]
[1746806322335,0.26618419,637.41,634.7,0.2889881]
[1746806322540,0.27356985,637.39,634.7,0.2889881]
[1746806322741,0.26618419,637.38,634.7,0.2889881]
[1746806325140,0.26618419,637.41,634.7,0.2889881]
[1746806325442,0.2735376,637.37,634.7,0.2889881]
[1746806325842,0.26618419,637.36,634.7,0.2889881]
[1746806328845,0.26618419,637.35,634.71,0.2889881]
[1746806329144,0.26618419,637.34,634.72,0.2889881]
[1746806329644,0.26618419,637.33,634.73,0.2889881]
[1746806330039,0.26618419,637.32,634.74,0.2889881]
[1746806330245,0.26618419,637.31,634.75,0.2889881]
[1746806330545,0.2735376,637.37,634.69,0.31511446]
[1746806330940,0.2660873,637.36,634.7,0.28889066]
[1746806331141,0.2660873,637.35,634.71,0.28889066]
[1746806331445,0.2660873,637.34,634.72,0.28889066]
[1746806331745,0.2660873,637.33,634.73,0.28889066]
[1746806331946,0.2660873,637.33,634.81,0.99378395]
[1746806332146,0.2660873,637.32,634.81,0.99378395]
[1746806332446,0.2660873,637.31,634.82,0.28889066]
[1746806332746,0.2660873,637.3,634.83,0.28889066]
[1746806333043,0.2660873,637.29,634.84,0.28889066]
[1746806333347,0.2660873,637.28,634.85,0.28889066]
[1746806333748,0.2660873,637.28,634.81,0.99378395]
[1746806333749,0.2660873,637.27,634.86,0.28889066]
[1746806334248,0.2660873,637.31,634.78,0.28889066]
[1746806334449,0.2660873,637.31,634.79,0.28889066]
[1746806334643,0.27353975,637.26,634.79,0.28889066]
[1746806334843,0.2660873,637.25,634.78,0.28889066]
[1746806335051,0.27353975,637.26,634.77,0.99378395]
[1746806335551,0.26610752,637.25,634.89,0.31501519]
[1746806335951,0.26610752,637.25,634.9,0.28891099]
[1746806336250,0.26610752,637.25,635.01,0.31495566]
[1746806336751,0.26610752,637.25,635.02,0.28891099]
[1746806337251,0.26610752,637.25,635.13,0.31489616]
[1746806337451,0.27353115,637.24,635.13,0.31489616]
[1746806338053,0.26610752,637.23,635.14,0.28891099]
[1746806338251,0.26610752,637.23,635.24,0.31484163]
[1746806338647,0.26610752,637.23,635.25,0.28891099]
[1746806338850,0.26610752,637.23,635.27,0.31482676]
[1746806339051,0.39,637.22,635.27,0.31482676]
[1746806339351,0.26610752,637.21,635.28,0.28891099]
[1746806339654,0.26610752,637.2,635.3,0.31481189]
[1746806339952,0.26610752,637.19,635.31,0.28891099]
[1746806340252,0.26610752,637.19,635.33,0.31479703]
[1746806340459,0.53961824,637.18,635.33,0.31479703]
[1746806340851,0.26610752,637.17,635.34,0.28891099]
[1746806341051,0.26610752,637.17,635.36,0.31478217]
[1746806341251,0.26610752,637.16,635.36,0.31478217]
[1746806341953,0.26610752,637.15,635.37,0.28891099]
[1746806342253,0.26610752,637.14,635.37,0.28891099]
[1746806342549,0.26610752,637.13,635.37,0.28891099]
[1746806342750,0.26610752,637.13,635.39,0.3147673]
[1746806342956,0.26610752,637.12,635.39,0.3147673]
[1746806343351,0.26610752,637.11,635.39,0.3147673]
[1746806343555,0.26610752,637.1,635.39,0.3147673]
[1746806343955,0.26610752,637.09,635.39,0.3147673]
[1746806344357,0.26610752,637.08,635.39,0.3147673]
[1746806344657,0.26610752,637.07,635.39,0.3147673]
[1746806345058,0.26610752,637.06,635.39,0.3147673]
[1746806345254,0.26610752,637.06,635.4,0.421]
[1746806345453,0.26610752,637.11,635.4,0.421]
[1746806346258,0.26610752,637.11,635.42,0.31475244]
[1746806349761,0.26610752,637.1,635.42,0.31475244]
[1746806350161,0.26610752,637.09,635.42,0.31475244]
[1746806350561,0.26610752,637.08,635.42,0.31475244]
[1746806351063,0.26610752,637.07,635.42,0.31475244]
[1746806351364,0.26610752,637.06,635.42,0.31475244]
[1746806351764,0.26610752,637.05,635.42,0.31475244]
[1746806352265,0.26610752,637.04,635.42,0.31475244]
[1746806352564,0.26610752,637.03,635.42,0.31475244]
[1746806352865,0.26610752,637.02,635.42,0.31475244]
[1746806353467,0.26610752,637.01,635.42,0.31475244]
[1746806353668,0.26610752,637.0,635.42,0.31475244]
[1746806353969,0.26610752,636.99,635.42,0.31475244]
[1746806354268,0.26610752,636.98,635.42,0.31475244]
[1746806354669,0.26610752,636.97,635.42,0.31475244]
[1746806354869,0.26610752,636.96,635.42,0.31475244]
[1746806355368,0.53966984,636.95,635.42,0.31475244]
[1746806356071,2.5388026,636.95,635.42,0.31475244]
[1746806356363,0.26610752,636.94,635.42,0.31475244]
[1746806356764,0.26610752,636.93,635.42,0.31475244]
[1746806357169,0.26610752,636.94,635.42,0.31475244]
[1746806358173,0.64610752,636.94,635.42,0.31475244]
[1746806358366,0.38,636.94,635.42,0.31475244]
[1746806358670,0.26610752,636.93,635.42,0.31475244]
[1746806360974,0.703,636.92,635.42,0.31475244]
[1746806361277,0.26610752,636.91,635.42,0.31475244]
[1746806363977,0.703,636.92,635.42,0.31475244]
[1746806364278,0.26584052,636.91,635.42,0.31475244]
[1746806366679,0.26584052,636.9,635.42,0.31475244]
[1746806366878,0.26584052,636.91,635.42,0.31475244]
[1746806367079,0.26584052,636.9,635.42,0.31475244]
[1746806367378,0.26584052,636.91,635.42,0.31475244]
[1746806367680,0.703,636.92,635.42,0.31475244]
[1746806367980,0.26589946,636.91,635.43,0.28897487]
[1746806368180,0.26589946,636.9,635.43,0.28897487]
[1746806368378,0.26589946,636.89,635.43,0.28897487]
[1746806368679,0.26589946,636.88,635.43,0.28897487]
[1746806368872,0.26589946,636.87,635.43,0.28897487]
[1746806369077,0.26589946,636.86,635.43,0.28897487]
[1746806369280,0.26589946,636.91,635.42,0.31475244]
[1746806373081,0.703,636.92,635.42,0.31475244]
[1746806373281,0.26595674,636.91,635.42,0.31475244]
[1746806375682,0.26595674,636.9,635.42,0.31475244]
[1746806375884,0.26595674,636.89,635.42,0.31475244]
[1746806376186,0.26595674,636.88,635.42,0.31475244]
[1746806376379,0.26595674,636.87,635.42,0.31475244]
[1746806376584,0.26595674,636.86,635.42,0.31475244]
[1746806376787,0.26595674,636.85,635.42,0.31475244]
[1746806377086,0.26595674,636.84,635.42,0.31475244]
[1746806377285,0.26595674,636.83,635.42,0.31475244]
[1746806377482,0.26595674,636.82,635.42,0.31475244]
[1746806377687,0.26595674,636.81,635.42,0.31475244]
[1746806377983,0.26595674,636.8,635.42,0.31475244]
[1746806378283,0.26595674,636.79,635.42,0.31475244]
[1746806378486,0.703,636.92,635.42,0.31475244]
[1746806378487,0.26595674,636.78,635.42,0.31475244]
[1746806378688,0.26595674,636.91,635.42,0.31475244]
[1746806378881,0.26595674,636.9,635.42,0.31475244]
[1746806379084,0.26595674,636.89,635.42,0.31475244]
[1746806379286,0.26595674,636.88,635.42,0.31475244]
[1746806379486,0.26595674,636.87,635.42,0.31475244]
[1746806379686,0.26595674,636.86,635.42,0.31475244]
[1746806379986,0.703,636.92,635.42,0.31475244]
[1746806379987,0.26595674,636.85,635.42,0.31475244]
[1746806380186,0.26595674,636.84,635.42,0.31475244]
[1746806380387,0.26595674,636.83,635.42,0.31475244]
[1746806380580,0.26595674,636.82,635.42,0.31475244]
[1746806380783,0.26595674,636.91,635.42,0.31475244]
[1746806380982,0.26595674,636.9,635.42,0.31475244]
[1746806381287,0.26595674,636.89,635.42,0.31475244]
[1746806381486,0.26595674,636.88,635.42,0.31475244]
[1746806381681,0.26595674,636.87,635.42,0.31475244]
[1746806381886,0.26595674,636.86,635.42,0.31475244]
[1746806382083,0.703,636.92,635.42,0.31475244]
[1746806382287,0.26584405,636.91,635.42,0.31475244]
[1746806388590,0.26584405,636.9,635.42,0.31475244]
[1746806388793,0.26584405,636.89,635.42,0.83575244]
[1746806388993,0.26584405,636.88,635.42,0.83575244]
[1746806389184,1.99913276,637.28,635.42,0.83575244]
[1746806389390,1.99913276,637.24,635.42,0.83575244]
[1746806389590,0.26587587,637.23,635.42,0.83575244]
[1746806389890,0.26587587,637.22,635.42,0.83575244]
[1746806390191,0.26587587,637.21,635.42,0.83575244]
[1746806390390,0.26587587,637.2,635.42,0.83575244]
[1746806390590,0.26587587,637.19,635.42,0.83575244]
[1746806390786,0.26587587,637.18,635.42,0.83575244]
[1746806390990,0.26587587,637.17,635.42,0.83575244]
[1746806391188,0.39,637.19,635.42,0.83575244]
[1746806391189,0.26587587,637.16,635.42,0.83575244]
[1746806391385,0.26587587,637.15,635.42,0.83575244]
[1746806391689,0.26587587,637.14,635.42,0.83575244]
[1746806391888,0.26587587,637.13,635.42,0.83575244]
[1746806392089,0.26587587,637.12,635.42,0.83575244]
[1746806392288,0.26587587,637.11,635.42,0.83575244]
[1746806392486,0.26587587,637.1,635.42,0.83575244]
[1746806392786,0.26587587,637.09,635.42,0.83575244]
[1746806392987,0.26587587,637.14,635.42,0.83575244]
[1746806393185,0.586,637.15,635.42,0.83575244]
[1746806393186,0.26587587,637.13,635.42,0.83575244]
[1746806393492,0.26587587,637.12,635.42,0.83575244]
[1746806393687,0.26587587,637.11,635.42,0.83575244]
[1746806393991,0.26587587,637.14,635.42,0.83575244]
[1746806394193,0.586,637.15,635.42,0.83575244]
[1746806394194,0.26587587,637.1,635.42,0.83575244]
[1746806394393,0.26587587,637.13,635.42,0.83575244]
[1746806394592,0.26587587,637.09,635.42,0.83575244]
[1746806394790,0.26587587,637.12,635.42,0.83575244]
[1746806394989,0.26587587,637.08,635.42,0.83575244]
[1746806395189,0.26587587,637.14,635.42,0.83575244]
[1746806395596,0.26587587,637.13,635.42,0.83575244]
[1746806395794,0.26587587,637.12,635.42,0.83575244]
[1746806395995,0.26587587,637.11,635.42,0.83575244]
[1746806396291,0.586,637.15,635.42,0.83575244]
[1746806396492,0.26586119,637.14,635.42,0.83575244]
[1746806396696,0.26586119,637.13,635.42,0.83575244]
[1746806396896,0.26586119,637.12,635.42,0.83575244]
[1746806397097,0.26586119,637.11,635.42,0.83575244]
[1746806397299,0.26586119,637.1,635.43,0.28894306]
[1746806397597,0.26586119,637.14,635.42,0.83575244]
[1746806397796,0.26586119,637.09,635.42,0.83575244]
[1746806397997,0.26586119,637.13,635.42,0.83575244]
[1746806398197,0.26586953,637.12,635.42,0.83575244]
[1746806398396,0.26586953,637.14,635.42,0.83575244]
[1746806398596,0.26586953,637.13,635.42,0.83575244]
[1746806398897,0.26586953,637.12,635.42,0.83575244]
[1746806399197,0.26586953,637.11,635.42,0.83575244]
[1746806399398,0.26586953,637.1,635.42,0.83575244]
[1746806399700,0.26586953,637.14,635.42,0.83575244]
[1746806399893,0.586,637.15,635.42,0.83575244]
[1746806400099,0.26586449,637.13,635.42,0.83575244]
[1746806400802,0.586,637.15,635.42,0.83575244]
[1746806404295,0.26600146,637.14,635.42,0.83575244]
[1746806404695,0.26600146,637.14,635.43,0.28886657]
[1746806405394,0.26600146,637.14,635.42,0.83575244]
[1746806407394,0.586,637.15,635.42,0.83575244]
[1746806408495,0.26593343,637.14,635.43,0.28877827]
[1746806410101,0.586,637.15,635.42,0.31475244]
[1746806410396,0.26593432,637.14,635.42,0.31475244]
[1746806410901,0.26593432,637.14,635.42,0.92075244]
[1746806416611,0.26593432,637.14,635.42,0.606]
[1746806420907,0.373,637.24,635.42,0.606]
[1746806420908,0.26593432,637.23,635.42,0.606]
[1746806421813,0.373,637.24,635.42,0.606]
[1746806422113,0.26594104,637.23,635.42,0.606]
[1746806422410,0.26594104,637.23,635.43,0.2888878]
[1746806422613,0.26594104,637.22,635.43,0.2888878]
[1746806423014,0.26594104,637.21,635.43,0.2888878]
[1746806423412,0.26594104,637.2,635.43,0.2888878]
[1746806423713,0.26594104,637.19,635.43,0.2888878]
[1746806424110,0.26594104,637.18,635.43,0.2888878]
[1746806424310,0.26594104,637.17,635.43,0.2888878]
[1746806424713,0.26594104,637.16,635.43,0.2888878]
[1746806425013,0.26594104,637.15,635.43,0.2888878]
[1746806425213,0.48,637.2,635.42,0.606]
[1746806425514,0.2659339,637.19,635.43,0.2888921]
[1746806425714,0.2659339,637.18,635.43,0.2888921]
[1746806426112,0.2659339,637.17,635.43,0.2888921]
[1746806426414,0.2659339,637.16,635.43,0.2888921]
[1746806426811,0.2659339,637.15,635.43,0.2888921]
[1746806427115,0.2659339,637.14,635.43,0.2888921]
[1746806427415,0.2659339,637.13,635.43,0.2888921]
[1746806427814,0.2659339,637.19,635.43,0.2888921]
[1746806428115,0.2659339,637.18,635.43,0.2888921]
[1746806428414,0.48,637.2,635.42,0.606]
[1746806428616,0.26594655,637.19,635.43,0.28887992]
[1746806430816,0.26594655,637.18,635.43,0.28887992]
[1746806431016,0.26594655,637.17,635.43,0.28887992]
[1746806431214,0.26594655,637.17,635.44,0.58553959]
[1746806431416,0.26594655,637.16,635.45,0.58553959]
[1746806431717,0.26594655,637.16,635.46,0.58553959]
[1746806431915,0.26594655,637.15,635.47,0.58553959]
[1746806432115,0.26594655,637.15,635.48,0.5855281]
[1746806432317,0.26594655,637.15,635.49,0.5855281]
[1746806432518,0.26594655,637.15,635.5,0.5855281]
[1746806432712,0.26594655,637.14,635.51,0.5855281]
[1746806432913,0.26594655,637.19,635.52,0.87440802]
[1746806433113,0.26594655,637.19,635.53,0.5855281]
[1746806433316,0.26594655,637.18,635.54,0.5855281]
[1746806433518,0.48,637.2,635.55,0.5855281]
[1746806433718,0.48,637.2,635.56,0.5855281]
[1746806433916,0.26601945,637.19,635.57,0.5855281]
[1746806434118,0.26601945,637.18,635.58,0.87441927]
[1746806434317,0.26601945,637.17,635.59,0.87441927]
[1746806434519,0.26601945,637.17,635.6,0.5855281]
[1746806434820,0.26601945,637.16,635.61,0.5855281]
[1746806435016,0.26601945,637.16,635.62,0.5855281]
[1746806435217,0.26601945,637.16,635.63,0.5855281]
[1746806435512,0.26601945,637.16,635.64,0.5855281]
[1746806435714,0.26601945,637.16,635.65,0.5855281]
[1746806435917,0.26601945,637.16,635.42,0.606]
[1746806435918,0.373,637.24,635.66,0.5855281]
[1746806436114,0.26608705,637.23,635.67,0.5855281]
[1746806436320,0.26608705,637.22,635.68,0.5855281]
[1746806436623,0.26608705,637.21,635.69,0.5855281]
[1746806436817,0.373,637.24,635.7,0.5855281]
[1746806437022,0.26609553,637.23,635.71,0.5855281]
[1746806437217,0.26609553,637.23,635.72,0.58537742]
[1746806437420,0.26609553,637.22,635.73,0.58537742]
[1746806437718,0.26609553,637.22,635.74,0.58537742]
[1746806437920,0.26609553,637.21,635.75,0.58537742]
[1746806438120,0.26609553,637.21,635.76,0.58537742]
[1746806438320,0.26609553,637.21,635.77,0.58537742]
[1746806438517,0.26609553,637.21,635.78,0.58537742]
[1746806438822,0.26609553,637.21,635.79,0.58537742]
[1746806439122,0.373,637.24,635.42,0.606]
[1746806439123,0.26609553,637.2,635.8,0.58537742]
[1746806439316,0.26609553,637.2,635.81,0.58537742]
[1746806439519,0.26609553,637.2,635.82,0.58537742]
[1746806439717,0.26609553,637.23,635.83,0.58537742]
[1746806439922,0.26609553,637.23,635.84,0.58537742]
[1746806440122,0.26609553,637.23,635.85,0.58537742]
[1746806440323,0.26609553,637.23,635.86,0.58537742]
[1746806440518,0.26609553,637.23,634.88,0.99497732]
[1746806440722,0.26609553,637.23,634.89,0.58586666]
[1746806441023,0.26609553,637.23,634.9,0.58586666]
[1746806441220,0.26609553,637.23,634.91,0.58586666]
[1746806441416,0.26609553,637.23,634.92,0.87475378]
[1746806441621,0.26609553,637.23,634.93,0.87475378]
[1746806441820,0.26609553,637.23,634.94,0.58586666]
[1746806442023,0.26609553,637.23,634.95,0.58586666]
[1746806442220,0.26609553,637.23,634.96,0.58586666]
[1746806442423,0.26609553,637.23,634.97,0.58579751]
[1746806442619,0.26609553,637.23,634.98,0.58568568]
[1746806442819,0.26609553,637.23,634.99,0.58568568]
[1746806443023,0.26609553,637.23,635.0,0.58568568]
[1746806443225,0.26609553,637.23,635.01,0.58568568]
[1746806443423,0.26609553,637.23,634.99,0.28888712]
[1746806443424,0.26609553,637.22,635.02,0.8745728]
[1746806443626,0.26609553,637.22,635.03,0.58568568]
[1746806443824,0.26609553,637.21,635.04,0.58568568]
[1746806444024,0.26609553,637.21,635.05,0.58568568]
[1746806444225,0.26609553,637.2,635.06,0.58568926]
[1746806444422,0.26609553,637.2,635.07,0.58566635]
[1746806444621,0.26609553,637.2,635.08,0.58566635]
[1746806444926,0.26609553,637.23,635.09,0.58566635]
[1746806445126,0.26609553,637.23,635.1,0.58566635]
[1746806445328,0.26609553,637.23,635.11,0.58566635]
[1746806445523,0.26609553,637.23,635.12,0.58566635]
[1746806445723,0.26609553,637.23,635.13,0.58566635]
[1746806445925,0.26609553,637.23,635.14,0.58566635]
[1746806446128,0.26609553,637.23,635.15,0.58566635]
[1746806446325,0.26609553,637.23,635.16,0.58566635]
[1746806446525,0.26609553,637.23,635.17,0.58566635]
[1746806446726,0.26609553,637.23,635.18,0.58566635]
[1746806446927,0.26609553,637.23,635.19,0.28888712]
[1746806447124,0.26609553,637.23,634.97,0.28888712]
[1746806448130,0.26609553,637.22,634.97,0.28888712]
[1746806448431,0.26609553,637.21,634.97,0.28888712]
[1746806448736,0.26609553,637.2,634.97,0.28888712]
[1746806449233,0.26609553,637.19,634.97,0.28888712]
[1746806449532,0.26609553,637.18,634.97,0.28888712]
[1746806449928,0.26609553,637.17,634.97,0.28888712]
[1746806450133,2.0308231,637.15,634.97,0.28888712]
[1746806450327,0.26609553,637.14,634.97,0.28888712]
[1746806450737,0.26609553,637.13,634.97,0.28888712]
[1746806451035,0.26609553,637.12,634.97,0.28888712]
[1746806451332,0.26609553,637.11,634.97,0.28888712]
[1746806451631,0.26609553,637.1,634.97,0.28888712]
[1746806451937,2.0308231,637.07,634.97,0.28888712]
[1746806452133,2.0308231,637.07,634.96,0.554]
[1746806452336,2.4028231,637.07,634.96,0.554]
[1746806452531,0.26622002,637.06,634.97,0.28902416]
[1746806452938,0.26622002,637.05,634.97,0.28902416]
[1746806453139,0.26622002,637.04,634.97,0.28902416]
[1746806453434,0.26622002,637.03,634.97,0.28902416]
[1746806454133,0.26622002,637.02,634.97,0.28902416]
[1746806454741,0.26622002,637.01,634.97,0.28902416]
[1746806455039,0.26622002,637.0,634.97,0.28902416]
[1746806455244,0.95222002,637.0,634.97,0.28902416]
[1746806455436,0.26622002,636.99,634.97,0.28902416]
[1746806455942,0.26622002,636.98,634.97,0.28902416]
[1746806456342,0.26622002,636.97,634.97,0.28902416]
[1746806456642,0.26622002,636.96,634.6,0.28902416]
[1746806457039,0.26622002,636.95,634.61,0.28902416]
[1746806457339,0.26622002,636.94,634.62,0.28902416]
[1746806457542,0.26622002,636.94,634.59,0.99497732]
[1746806457543,0.26622002,636.93,634.63,0.28902416]
[1746806457742,0.26622002,636.93,634.59,0.99497732]
[1746806457743,0.26622002,636.92,634.64,0.28902416]